[Event "*** Titled Tuesday Blitz"]
[Site "Chess.com"]
[Date "2020.10.27"]
[Round "1"]
[White "Flawless_Fighter"]
[Black "barbara25"]
[Result "1-0"]
[WhiteElo "2592"]
[BlackElo "2250"]
[TimeControl "180+1"]
[EndTime "10:06:58 PDT"]
[Termination "Flawless_Fighter won by checkmate"]

1. e4 {[%clk 0:03:00.9]} 1... c5 {[%clk 0:02:59.7]} 2. Nf3 {[%clk 0:03:00.6]}
2... d6 {[%clk 0:02:59.7]} 3. d4 {[%clk 0:02:59.9]} 3... cxd4 {[%clk 0:02:59.9]}
4. Nxd4 {[%clk 0:03:00.8]} 4... Nf6 {[%clk 0:03:00.1]} 5. Nc3 {[%clk 0:03:01.5]}
5... a6 {[%clk 0:03:00.3]} 6. a3 {[%clk 0:02:59.3]} 6... e5 {[%clk 0:02:59]} 7.
Nf5 {[%clk 0:02:59.9]} 7... Bxf5 {[%clk 0:02:58.2]} 8. exf5 {[%clk 0:03:00.8]}
8... d5 {[%clk 0:02:58.7]} 9. Bg5 {[%clk 0:03:00.8]} 9... d4 {[%clk 0:02:57.7]}
10. Ne4 {[%clk 0:03:00.6]} 10... Nbd7 {[%clk 0:02:58.2]} 11. Bd3 {[%clk
0:02:59.2]} 11... Be7 {[%clk 0:02:57.5]} 12. Bxf6 {[%clk 0:02:51.6]} 12... Nxf6
{[%clk 0:02:54.2]} 13. Qf3 {[%clk 0:02:50.5]} 13... Rb8 {[%clk 0:02:50.8]} 14.
O-O {[%clk 0:02:49.3]} 14... O-O {[%clk 0:02:49.2]} 15. Rae1 {[%clk 0:02:50]}
15... Nxe4 {[%clk 0:02:46.3]} 16. Rxe4 {[%clk 0:02:48]} 16... Bf6 {[%clk
0:02:45.9]} 17. Rfe1 {[%clk 0:02:47.2]} 17... Qd6 {[%clk 0:02:37]} 18. h4 {[%clk
0:02:43.9]} 18... Kh8 {[%clk 0:02:34.9]} 19. Qh5 {[%clk 0:02:32.8]} 19... b5
{[%clk 0:02:25.6]} 20. g4 {[%clk 0:02:18.7]} 20... g6 {[%clk 0:02:25]} 21. Qh6
{[%clk 0:02:09.6]} 21... Bg7 {[%clk 0:02:14.4]} 22. Qd2 {[%clk 0:02:08.2]} 22...
gxf5 {[%clk 0:02:14.4]} 23. gxf5 {[%clk 0:02:07.7]} 23... Bh6 {[%clk 0:02:12.4]}
24. Qe2 {[%clk 0:02:06.2]} 24... f6 {[%clk 0:02:12.2]} 25. Qh5 {[%clk
0:01:58.8]} 25... Rg8+ {[%clk 0:02:09.2]} 26. Kh1 {[%clk 0:01:58.4]} 26... Bf4
{[%clk 0:02:09.2]} 27. Qf3 {[%clk 0:01:44.4]} 27... Rg7 {[%clk 0:01:58.8]} 28.
Rg1 {[%clk 0:01:38]} 28... Rbg8 {[%clk 0:01:58.4]} 29. Rxg7 {[%clk 0:01:37.7]}
29... Rxg7 {[%clk 0:01:58.3]} 30. Re1 {[%clk 0:01:37.7]} 30... h6 {[%clk
0:01:56]} 31. Qa8+ {[%clk 0:01:31.8]} 31... Kh7 {[%clk 0:01:55.5]} 32. Be4
{[%clk 0:01:27.5]} 32... b4 {[%clk 0:01:41.8]} 33. a4 {[%clk 0:01:15.4]} 33...
Rg8 {[%clk 0:01:32.8]} 34. Qb7+ {[%clk 0:01:14.7]} 34... Rg7 {[%clk 0:01:32.8]}
35. Qc8 {[%clk 0:01:13.1]} 35... Rg8 {[%clk 0:01:30]} 36. Qc4 {[%clk 0:01:11.4]}
36... a5 {[%clk 0:01:24]} 37. Rg1 {[%clk 0:01:09.4]} 37... Rxg1+ {[%clk
0:01:11.2]} 38. Kxg1 {[%clk 0:01:10.3]} 38... Qe7 {[%clk 0:01:09.6]} 39. Kf1
{[%clk 0:01:10.4]} 39... Bc1 {[%clk 0:01:06.5]} 40. b3 {[%clk 0:01:08.1]} 40...
Bf4 {[%clk 0:00:55.3]} 41. Qd5 {[%clk 0:01:08.2]} 41... Qc7 {[%clk 0:00:53.8]}
42. Bd3 {[%clk 0:01:05.8]} 42... e4 {[%clk 0:00:29.3]} 43. Bxe4 {[%clk
0:01:02.3]} 43... Be5 {[%clk 0:00:28.7]} 44. Bd3 {[%clk 0:01:00.3]} 44... h5
{[%clk 0:00:12.4]} 45. Bc4 {[%clk 0:00:59.6]} 45... Kh6 {[%clk 0:00:12.5]} 46.
Qg8 {[%clk 0:00:54.2]} 46... Qg7 {[%clk 0:00:11.8]} 47. Qe8 {[%clk 0:00:52.8]}
47... Qg4 {[%clk 0:00:11]} 48. Qh8# {[%clk 0:00:52.7]} 1-0

[Event "*** Titled Tuesday Blitz"]
[Site "Chess.com"]
[Date "2020.10.27"]
[Round "1"]
[White "ural58"]
[Black "Margency"]
[Result "0-1"]
[WhiteElo "2341"]
[BlackElo "2677"]
[TimeControl "180+1"]
[EndTime "10:07:00 PDT"]
[Termination "Margency won by resignation"]

1. e4 {[%clk 0:02:53.5]} 1... c5 {[%clk 0:02:16.5]} 2. b3 {[%clk 0:02:47.6]}
2... d6 {[%clk 0:02:14.5]} 3. Bb2 {[%clk 0:02:47.6]} 3... Nc6 {[%clk 0:02:14.7]}
4. f4 {[%clk 0:02:47]} 4... Nf6 {[%clk 0:02:13.8]} 5. Qf3 {[%clk 0:02:47.1]}
5... g6 {[%clk 0:02:11.3]} 6. Bb5 {[%clk 0:02:46.8]} 6... Bd7 {[%clk 0:02:08.2]}
7. e5 {[%clk 0:02:43.9]} 7... dxe5 {[%clk 0:02:07.8]} 8. fxe5 {[%clk 0:02:43.7]}
8... Nxe5 {[%clk 0:02:02.6]} 9. Bxe5 {[%clk 0:02:35.4]} 9... Bxb5 {[%clk
0:02:02.4]} 10. Qxb7 {[%clk 0:02:35.6]} 10... Bd7 {[%clk 0:01:53]} 11. Bxf6
{[%clk 0:02:32.3]} 11... exf6 {[%clk 0:01:53.1]} 12. Nc3 {[%clk 0:02:31.7]}
12... Bh6 {[%clk 0:01:46.9]} 13. Qe4+ {[%clk 0:02:28.4]} 13... Kf8 {[%clk
0:01:42.5]} 14. O-O-O {[%clk 0:02:25.2]} 14... Kg7 {[%clk 0:01:40]} 15. Nf3
{[%clk 0:02:18.7]} 15... Re8 {[%clk 0:01:39.2]} 16. Qd3 {[%clk 0:02:15.7]} 16...
Bf5 {[%clk 0:01:24.3]} 17. Qxd8 {[%clk 0:02:14.7]} 17... Raxd8 {[%clk
0:01:24.5]} 18. h3 {[%clk 0:02:11.3]} 18... Bc8 {[%clk 0:01:18.2]} 19. Rhe1
{[%clk 0:02:10.2]} 19... Bb7 {[%clk 0:01:16.2]} 20. Rxe8 {[%clk 0:02:10]} 20...
Rxe8 {[%clk 0:01:16]} 21. Rf1 {[%clk 0:02:08.8]} 21... f5 {[%clk 0:01:14.6]} 22.
Kb2 {[%clk 0:02:06.1]} 22... Bxf3 {[%clk 0:01:07]} 23. Rxf3 {[%clk 0:02:02.6]}
23... Bxd2 {[%clk 0:01:07.4]} 24. Na4 {[%clk 0:02:02.5]} 24... Be3 {[%clk
0:01:01.9]} 25. Kc3 {[%clk 0:01:58.8]} 25... Re4 {[%clk 0:00:59.7]} 26. Kd3
{[%clk 0:01:42.7]} 26... Bg1 {[%clk 0:00:41.1]} 27. Rf1 {[%clk 0:01:40.9]} 27...
Bh2 {[%clk 0:00:32.5]} 28. Nxc5 {[%clk 0:01:38.8]} 28... Re7 {[%clk 0:00:32.4]}
29. a4 {[%clk 0:01:28.7]} 29... h5 {[%clk 0:00:32.1]} 30. b4 {[%clk 0:01:28.3]}
30... Bd6 {[%clk 0:00:31]} 31. Na6 {[%clk 0:01:20.5]} 31... f4 {[%clk
0:00:29.8]} 32. c4 {[%clk 0:01:19.3]} 32... Re3+ {[%clk 0:00:29.6]} 33. Kd4
{[%clk 0:01:19.4]} 33... Be5+ {[%clk 0:00:29.5]} 34. Kd5 {[%clk 0:01:19.2]}
34... Kf6 {[%clk 0:00:29.5]} 35. b5 {[%clk 0:01:17.5]} 35... Re2 {[%clk
0:00:28.1]} 36. Rg1 {[%clk 0:01:01.4]} 36... Kf5 {[%clk 0:00:26.5]} 37. c5
{[%clk 0:00:59.7]} 37... Rd2+ {[%clk 0:00:26.4]} 38. Kc6 {[%clk 0:00:59.5]}
38... g5 {[%clk 0:00:26.1]} 39. a5 {[%clk 0:00:56.3]} 39... g4 {[%clk
0:00:25.7]} 40. hxg4+ {[%clk 0:00:56.6]} 40... hxg4 {[%clk 0:00:25.8]} 41. b6
{[%clk 0:00:57.5]} 41... axb6 {[%clk 0:00:24.9]} 42. cxb6 {[%clk 0:00:57.7]}
42... Rc2+ {[%clk 0:00:23.9]} 43. Kd5 {[%clk 0:00:55]} 43... Rd2+ {[%clk
0:00:23.6]} 44. Kc6 {[%clk 0:00:54.8]} 44... Rc2+ {[%clk 0:00:23.7]} 45. Kd5
{[%clk 0:00:54.6]} 45... Rb2 {[%clk 0:00:23.8]} 46. Nc5 {[%clk 0:00:52.4]} 46...
Rb5 {[%clk 0:00:21.2]} 47. Ra1 {[%clk 0:00:45.3]} 47... Bxa1 {[%clk 0:00:19.9]}
0-1

[Event "*** Titled Tuesday Blitz"]
[Site "Chess.com"]
[Date "2020.10.27"]
[Round "1"]
[White "maximnovik"]
[Black "Bigfish1995"]
[Result "0-1"]
[WhiteElo "2491"]
[BlackElo "3019"]
[TimeControl "180+1"]
[EndTime "10:07:03 PDT"]
[Termination "Bigfish1995 won by resignation"]

1. d4 {[%clk 0:02:59.3]} 1... d5 {[%clk 0:02:56.9]} 2. c4 {[%clk 0:02:58.7]}
2... e6 {[%clk 0:02:52.7]} 3. Nc3 {[%clk 0:02:58.6]} 3... h6 {[%clk 0:02:52.9]}
4. cxd5 {[%clk 0:02:57.8]} 4... exd5 {[%clk 0:02:52.5]} 5. Bf4 {[%clk
0:02:57.6]} 5... Nf6 {[%clk 0:02:51]} 6. e3 {[%clk 0:02:56.6]} 6... c6 {[%clk
0:02:50.6]} 7. Bd3 {[%clk 0:02:55.5]} 7... Bd6 {[%clk 0:02:22.2]} 8. Nf3 {[%clk
0:02:54.2]} 8... Bxf4 {[%clk 0:02:20.8]} 9. exf4 {[%clk 0:02:53.9]} 9... O-O
{[%clk 0:02:21.1]} 10. O-O {[%clk 0:02:49.9]} 10... Bg4 {[%clk 0:02:20.1]} 11.
h3 {[%clk 0:02:49.9]} 11... Bxf3 {[%clk 0:02:19.8]} 12. Qxf3 {[%clk 0:02:50.3]}
12... Qb6 {[%clk 0:02:20.3]} 13. Rfd1 {[%clk 0:02:32.8]} 13... Kh8 {[%clk
0:02:11.1]} 14. Rd2 {[%clk 0:02:32.1]} 14... Qxd4 {[%clk 0:02:05.7]} 15. Rad1
{[%clk 0:02:22.3]} 15... Nbd7 {[%clk 0:02:03.9]} 16. Bf5 {[%clk 0:02:15.4]}
16... Qb4 {[%clk 0:02:01.3]} 17. g4 {[%clk 0:02:15.8]} 17... Nb6 {[%clk
0:01:54]} 18. g5 {[%clk 0:02:13.3]} 18... Ng8 {[%clk 0:01:53.9]} 19. b3 {[%clk
0:01:53.4]} 19... Rae8 {[%clk 0:01:47.7]} 20. Ne2 {[%clk 0:01:52.6]} 20... g6
{[%clk 0:01:39.7]} 21. Bc2 {[%clk 0:01:46.1]} 21... hxg5 {[%clk 0:01:39.5]} 22.
fxg5 {[%clk 0:01:45.2]} 22... Qh4 {[%clk 0:01:36.3]} 23. Qg2 {[%clk 0:01:41.4]}
23... Re5 {[%clk 0:01:35.7]} 24. f4 {[%clk 0:01:27.7]} 24... Re3 {[%clk
0:01:35.7]} 25. Rd3 {[%clk 0:01:27]} 25... Rfe8 {[%clk 0:01:26.8]} 26. Rxe3
{[%clk 0:01:20.2]} 26... Rxe3 {[%clk 0:01:26.7]} 27. Kh2 {[%clk 0:01:12.8]}
27... Ne7 {[%clk 0:01:23.9]} 28. Rf1 {[%clk 0:01:05.6]} 28... Nd7 {[%clk
0:01:14.6]} 29. Rf3 {[%clk 0:01:02.4]} 29... Rxf3 {[%clk 0:01:10]} 30. Qxf3
{[%clk 0:01:02.2]} 30... Nf8 {[%clk 0:01:03.7]} 31. Qe3 {[%clk 0:00:58.2]} 31...
Ne6 {[%clk 0:01:02.9]} 32. Qxa7 {[%clk 0:00:45.4]} 32... Qe1 {[%clk 0:01:01.7]}
33. Qe3 {[%clk 0:00:42.5]} 33... Kg8 {[%clk 0:00:53.9]} 34. Qe5 {[%clk
0:00:08.7]} 34... Qf2+ {[%clk 0:00:40.6]} 35. Kh1 {[%clk 0:00:08.2]} 35... d4
{[%clk 0:00:36.4]} 36. Bd3 {[%clk 0:00:07.2]} 36... Qf3+ {[%clk 0:00:33]} 37.
Kh2 {[%clk 0:00:06.2]} 37... Qxd3 {[%clk 0:00:33.1]} 0-1

[Event "*** Titled Tuesday Blitz"]
[Site "Chess.com"]
[Date "2020.10.27"]
[Round "1"]
[White "Zhigalko_Sergei"]
[Black "BigAl"]
[Result "1-0"]
[WhiteElo "2911"]
[BlackElo "2468"]
[TimeControl "180+1"]
[EndTime "10:07:07 PDT"]
[Termination "Zhigalko_Sergei won by checkmate"]

1. e4 {[%clk 0:02:56.2]} 1... c6 {[%clk 0:02:59.7]} 2. d4 {[%clk 0:02:56.5]}
2... d5 {[%clk 0:03:00.4]} 3. e5 {[%clk 0:02:57.1]} 3... Bf5 {[%clk 0:03:00.5]}
4. Nf3 {[%clk 0:02:57.6]} 4... e6 {[%clk 0:03:00.9]} 5. Be2 {[%clk 0:02:56.1]}
5... Ne7 {[%clk 0:03:01.4]} 6. O-O {[%clk 0:02:55.3]} 6... Ng6 {[%clk
0:03:01.9]} 7. Ne1 {[%clk 0:02:53.4]} 7... h5 {[%clk 0:03:00.3]} 8. Bd3 {[%clk
0:02:52.3]} 8... Bxd3 {[%clk 0:02:56.5]} 9. Nxd3 {[%clk 0:02:53.2]} 9... Nd7
{[%clk 0:02:46.4]} 10. Be3 {[%clk 0:02:52.4]} 10... Be7 {[%clk 0:02:41.2]} 11.
Nd2 {[%clk 0:02:52]} 11... Nh4 {[%clk 0:02:41.3]} 12. f4 {[%clk 0:02:44]} 12...
Nf5 {[%clk 0:02:35.1]} 13. Bf2 {[%clk 0:02:43.6]} 13... h4 {[%clk 0:02:26]} 14.
c3 {[%clk 0:02:40.1]} 14... g6 {[%clk 0:02:24.7]} 15. a4 {[%clk 0:02:35.7]}
15... Rc8 {[%clk 0:02:14.4]} 16. a5 {[%clk 0:02:20.1]} 16... c5 {[%clk
0:02:05.3]} 17. Nf3 {[%clk 0:02:04.7]} 17... cxd4 {[%clk 0:01:44.1]} 18. cxd4
{[%clk 0:02:03.8]} 18... Nb8 {[%clk 0:01:39.9]} 19. g4 {[%clk 0:01:46.9]} 19...
hxg3 {[%clk 0:01:37.4]} 20. hxg3 {[%clk 0:01:47.2]} 20... Nc6 {[%clk 0:01:37.4]}
21. Qa4 {[%clk 0:01:36.8]} 21... Kf8 {[%clk 0:01:25.6]} 22. Kg2 {[%clk
0:01:36.7]} 22... Kg7 {[%clk 0:01:24.5]} 23. g4 {[%clk 0:01:31.5]} 23... Nh6
{[%clk 0:01:11.4]} 24. Kg3 {[%clk 0:01:23.6]} 24... g5 {[%clk 0:01:05.6]} 25.
Be3 {[%clk 0:01:19.3]} 25... gxf4+ {[%clk 0:01:01.4]} 26. Nxf4 {[%clk
0:01:13.8]} 26... Nb4 {[%clk 0:00:51.4]} 27. Nh5+ {[%clk 0:01:12.4]} 27... Kf8
{[%clk 0:00:51.9]} 28. Rh1 {[%clk 0:00:57.6]} 28... Nc2 {[%clk 0:00:46.9]} 29.
Bxh6+ {[%clk 0:00:46.8]} 29... Rxh6 {[%clk 0:00:46.1]} 30. Rac1 {[%clk
0:00:43.8]} 30... Ne3 {[%clk 0:00:41.1]} 31. Qb3 {[%clk 0:00:35.5]} 31... Nc4
{[%clk 0:00:33.4]} 32. Qd3 {[%clk 0:00:23.4]} 32... Bg5 {[%clk 0:00:29.9]} 33.
Rc2 {[%clk 0:00:19.9]} 33... Ne3 {[%clk 0:00:26.8]} 34. Rxc8 {[%clk 0:00:18.9]}
34... Qxc8 {[%clk 0:00:27.7]} 35. Nxg5 {[%clk 0:00:19.3]} 35... Nc4 {[%clk
0:00:18.9]} 36. Rf1 {[%clk 0:00:18.6]} 36... Qd8 {[%clk 0:00:18.1]} 37. Rxf7+
{[%clk 0:00:16.5]} 37... Kg8 {[%clk 0:00:18.6]} 38. Nf6+ {[%clk 0:00:16.2]}
38... Rxf6 {[%clk 0:00:18.4]} 39. Qh7# {[%clk 0:00:15]} 1-0

[Event "*** Titled Tuesday Blitz"]
[Site "Chess.com"]
[Date "2020.10.27"]
[Round "1"]
[White "kuban1991"]
[Black "TokChess"]
[Result "0-1"]
[WhiteElo "2771"]
[BlackElo "2423"]
[TimeControl "180+1"]
[EndTime "10:07:10 PDT"]
[Termination "TokChess won on time"]

1. Nf3 {[%clk 0:03:00.9]} 1... Nf6 {[%clk 0:02:58.6]} 2. g3 {[%clk 0:03:01.1]}
2... g6 {[%clk 0:02:58.5]} 3. Bg2 {[%clk 0:03:02]} 3... Bg7 {[%clk 0:02:59]} 4.
O-O {[%clk 0:03:02.9]} 4... O-O {[%clk 0:02:59.5]} 5. c4 {[%clk 0:03:03.6]} 5...
d5 {[%clk 0:02:58.7]} 6. cxd5 {[%clk 0:03:03.4]} 6... Nxd5 {[%clk 0:02:59.4]} 7.
Nc3 {[%clk 0:03:04.3]} 7... Nb6 {[%clk 0:02:59.7]} 8. d3 {[%clk 0:03:01.3]} 8...
Nc6 {[%clk 0:03:00]} 9. Bd2 {[%clk 0:02:59.5]} 9... h6 {[%clk 0:02:59]} 10. Rc1
{[%clk 0:02:57.4]} 10... e5 {[%clk 0:02:58.8]} 11. Ne4 {[%clk 0:02:51.5]} 11...
Qe7 {[%clk 0:02:48.1]} 12. Nc5 {[%clk 0:02:46.9]} 12... Rd8 {[%clk 0:02:39.8]}
13. a4 {[%clk 0:02:39]} 13... a5 {[%clk 0:02:38.2]} 14. Qb3 {[%clk 0:02:38.8]}
14... Kh7 {[%clk 0:02:34.4]} 15. Rfd1 {[%clk 0:02:34.9]} 15... f5 {[%clk
0:02:28]} 16. e3 {[%clk 0:02:27]} 16... Nb4 {[%clk 0:02:22.2]} 17. Bxb4 {[%clk
0:02:19.6]} 17... axb4 {[%clk 0:02:22.2]} 18. Nd2 {[%clk 0:02:19.6]} 18... c6
{[%clk 0:02:14.7]} 19. Qxb4 {[%clk 0:01:57.6]} 19... Nxa4 {[%clk 0:02:11.1]} 20.
Ra1 {[%clk 0:01:56.2]} 20... b5 {[%clk 0:01:39.2]} 21. Bxc6 {[%clk 0:01:48.5]}
21... Rb8 {[%clk 0:01:38.2]} 22. Ndb3 {[%clk 0:01:24.7]} 22... Be6 {[%clk
0:01:09]} 23. Qa3 {[%clk 0:00:52]} 23... Bxb3 {[%clk 0:00:44.9]} 24. Nxb3 {[%clk
0:00:52.9]} 24... Qxa3 {[%clk 0:00:33.5]} 25. bxa3 {[%clk 0:00:53.8]} 25... Nb2
{[%clk 0:00:33.5]} 26. Rd2 {[%clk 0:00:47.8]} 26... Nxd3 {[%clk 0:00:33.5]} 27.
e4 {[%clk 0:00:48.4]} 27... Rbc8 {[%clk 0:00:30.2]} 28. Bd5 {[%clk 0:00:41.5]}
28... fxe4 {[%clk 0:00:28.2]} 29. Bxe4 {[%clk 0:00:42.4]} 29... Rc3 {[%clk
0:00:23]} 30. Nc1 {[%clk 0:00:35.8]} 30... Rd4 {[%clk 0:00:21.6]} 31. Ne2 {[%clk
0:00:29.4]} 31... Nc5 {[%clk 0:00:14]} 0-1

[Event "*** Titled Tuesday Blitz"]
[Site "Chess.com"]
[Date "2020.10.27"]
[Round "1"]
[White "Chamal_Gedgafov"]
[Black "Zhani-Z"]
[Result "0-1"]
[WhiteElo "2155"]
[BlackElo "2543"]
[TimeControl "180+1"]
[EndTime "10:07:10 PDT"]
[Termination "Zhani-Z won on time"]

1. d4 {[%clk 0:02:57.4]} 1... Nf6 {[%clk 0:02:59.4]} 2. c4 {[%clk 0:02:56.5]}
2... e6 {[%clk 0:02:59.8]} 3. Nc3 {[%clk 0:02:54.3]} 3... Bb4 {[%clk 0:03:00.3]}
4. e3 {[%clk 0:02:55.2]} 4... O-O {[%clk 0:02:59.1]} 5. Ne2 {[%clk 0:02:56.1]}
5... c6 {[%clk 0:02:58.1]} 6. a3 {[%clk 0:02:57]} 6... Ba5 {[%clk 0:02:58.4]} 7.
b4 {[%clk 0:02:54.9]} 7... Bc7 {[%clk 0:02:58.2]} 8. c5 {[%clk 0:02:54.7]} 8...
d5 {[%clk 0:02:48.4]} 9. cxd6 {[%clk 0:02:53.5]} 9... Bxd6 {[%clk 0:02:48.3]}
10. g3 {[%clk 0:02:53.5]} 10... a5 {[%clk 0:02:46.3]} 11. b5 {[%clk 0:02:50.7]}
11... Bd7 {[%clk 0:02:08]} 12. Rb1 {[%clk 0:02:32.7]} 12... Qe8 {[%clk
0:02:03.4]} 13. Qb3 {[%clk 0:02:29.4]} 13... a4 {[%clk 0:02:02.2]} 14. Qb2
{[%clk 0:02:26.3]} 14... Ra5 {[%clk 0:01:39.4]} 15. Nf4 {[%clk 0:01:53.1]} 15...
e5 {[%clk 0:01:34.6]} 16. dxe5 {[%clk 0:01:42.7]} 16... Bxe5 {[%clk 0:01:35.1]}
17. Qb4 {[%clk 0:01:42.7]} 17... b6 {[%clk 0:01:26.8]} 18. Be2 {[%clk
0:01:26.8]} 18... cxb5 {[%clk 0:01:19.7]} 19. Nxb5 {[%clk 0:01:09]} 19... Na6
{[%clk 0:01:19.5]} 20. Qc4 {[%clk 0:00:54.8]} 20... Qe7 {[%clk 0:01:07.3]} 21.
Bd2 {[%clk 0:00:45.7]} 21... Rc8 {[%clk 0:01:06.6]} 22. Qa2 {[%clk 0:00:19.5]}
22... Bxf4 {[%clk 0:00:59.5]} 23. gxf4 {[%clk 0:00:18.2]} 23... Ne4 {[%clk
0:00:10.1]} 24. Bxa5 {[%clk 0:00:14.9]} 24... bxa5 {[%clk 0:00:11]} 25. Nd4
{[%clk 0:00:10.8]} 25... Nac5 {[%clk 0:00:10.8]} 26. h4 {[%clk 0:00:07]} 26...
Rd8 {[%clk 0:00:07.6]} 27. Qc2 {[%clk 0:00:01.7]} 27... h6 {[%clk 0:00:07]} 0-1

[Event "*** Titled Tuesday Blitz"]
[Site "Chess.com"]
[Date "2020.10.27"]
[Round "1"]
[White "Korchmar_Vasiliy"]
[Black "MarceloPlaya"]
[Result "1-0"]
[WhiteElo "2605"]
[BlackElo "2265"]
[TimeControl "180+1"]
[EndTime "10:07:11 PDT"]
[Termination "Korchmar_Vasiliy won on time"]

1. d4 {[%clk 0:03:00.9]} 1... e6 {[%clk 0:02:50.5]} 2. Bf4 {[%clk 0:03:00]} 2...
Nf6 {[%clk 0:02:49.1]} 3. e3 {[%clk 0:02:58.9]} 3... d5 {[%clk 0:02:48]} 4. Nf3
{[%clk 0:02:58.5]} 4... c5 {[%clk 0:02:48]} 5. Nbd2 {[%clk 0:02:53.1]} 5... Nc6
{[%clk 0:02:46.9]} 6. c3 {[%clk 0:02:53.3]} 6... Bd6 {[%clk 0:02:45]} 7. Bg3
{[%clk 0:02:53.4]} 7... O-O {[%clk 0:02:43.8]} 8. Bd3 {[%clk 0:02:52.3]} 8... b6
{[%clk 0:02:41.6]} 9. Qe2 {[%clk 0:02:51.5]} 9... Bb7 {[%clk 0:02:35]} 10. Rd1
{[%clk 0:02:50.3]} 10... Qe7 {[%clk 0:02:32.4]} 11. e4 {[%clk 0:02:44]} 11...
Bxg3 {[%clk 0:02:18]} 12. hxg3 {[%clk 0:02:44.9]} 12... cxd4 {[%clk 0:01:58.8]}
13. e5 {[%clk 0:02:42.8]} 13... Ne4 {[%clk 0:01:52.6]} 14. Nxe4 {[%clk
0:02:41.6]} 14... dxe4 {[%clk 0:01:51.4]} 15. Bxe4 {[%clk 0:02:26.7]} 15... g6
{[%clk 0:01:46.7]} 16. Nxd4 {[%clk 0:02:00.2]} 16... Nxd4 {[%clk 0:01:38.4]} 17.
Rxd4 {[%clk 0:02:01.1]} 17... Bxe4 {[%clk 0:01:30.3]} 18. Qxe4 {[%clk 0:02:02]}
18... f5 {[%clk 0:01:24.6]} 19. exf6 {[%clk 0:01:56.7]} 19... Qxf6 {[%clk
0:01:21.3]} 20. O-O {[%clk 0:01:57]} 20... Rad8 {[%clk 0:01:16.2]} 21. Rxd8
{[%clk 0:01:52.7]} 21... Rxd8 {[%clk 0:01:15]} 22. Re1 {[%clk 0:01:53.6]} 22...
Kf7 {[%clk 0:01:03.9]} 23. Qb7+ {[%clk 0:01:49.3]} 23... Qe7 {[%clk 0:01:02.5]}
24. Qe4 {[%clk 0:01:37.1]} 24... Rd5 {[%clk 0:00:58.6]} 25. Qxd5 {[%clk
0:01:29.8]} 25... exd5 {[%clk 0:00:57.8]} 26. Rxe7+ {[%clk 0:01:30.7]} 26...
Kxe7 {[%clk 0:00:57.6]} 27. Kf1 {[%clk 0:01:29.4]} 27... Kd6 {[%clk 0:00:55.2]}
28. Ke2 {[%clk 0:01:29.2]} 28... Ke5 {[%clk 0:00:51.5]} 29. Ke3 {[%clk
0:01:10.1]} 29... g5 {[%clk 0:00:50.9]} 30. g4 {[%clk 0:01:02.3]} 30... h6
{[%clk 0:00:42.8]} 31. g3 {[%clk 0:01:01.8]} 31... b5 {[%clk 0:00:21]} 32. f4+
{[%clk 0:01:01.6]} 32... Ke6 {[%clk 0:00:18.7]} 33. Kd4 {[%clk 0:01:01]} 33...
Kd6 {[%clk 0:00:17.8]} 34. f5 {[%clk 0:00:46.2]} 34... a5 {[%clk 0:00:16.7]} 35.
b3 {[%clk 0:00:43.3]} 35... Kc6 {[%clk 0:00:11.7]} 36. Ke5 {[%clk 0:00:27.6]}
36... b4 {[%clk 0:00:09.4]} 37. cxb4 {[%clk 0:00:27.4]} 37... axb4 {[%clk
0:00:09.2]} 38. f6 {[%clk 0:00:27.9]} 1-0

[Event "*** Titled Tuesday Blitz"]
[Site "Chess.com"]
[Date "2020.10.27"]
[Round "1"]
[White "aa175"]
[Black "CheckThis4"]
[Result "0-1"]
[WhiteElo "2222"]
[BlackElo "2580"]
[TimeControl "180+1"]
[EndTime "10:07:12 PDT"]
[Termination "CheckThis4 won on time"]

1. d4 {[%clk 0:03:00.9]} 1... d5 {[%clk 0:02:59.6]} 2. Bf4 {[%clk 0:03:00.4]}
2... Nf6 {[%clk 0:02:57.1]} 3. e3 {[%clk 0:03:00.3]} 3... e6 {[%clk 0:02:54.6]}
4. Nf3 {[%clk 0:03:00.7]} 4... Bd6 {[%clk 0:02:54.5]} 5. Nbd2 {[%clk 0:03:01]}
5... O-O {[%clk 0:02:54.3]} 6. Bd3 {[%clk 0:02:59.8]} 6... b6 {[%clk 0:02:53.9]}
7. Ne5 {[%clk 0:02:31.4]} 7... Ba6 {[%clk 0:02:44.2]} 8. c4 {[%clk 0:02:28.4]}
8... dxc4 {[%clk 0:02:39.8]} 9. Ndxc4 {[%clk 0:02:29.3]} 9... Bb4+ {[%clk
0:02:33.2]} 10. Ke2 {[%clk 0:02:26.8]} 10... Nd5 {[%clk 0:02:08.2]} 11. Bg3
{[%clk 0:02:23.2]} 11... f6 {[%clk 0:01:59]} 12. Nf3 {[%clk 0:02:20.7]} 12... b5
{[%clk 0:01:36.6]} 13. Ncd2 {[%clk 0:02:12.2]} 13... c5 {[%clk 0:01:36.3]} 14.
a3 {[%clk 0:02:07.3]} 14... Bxd2 {[%clk 0:01:32.1]} 15. Qxd2 {[%clk 0:02:04.4]}
15... c4 {[%clk 0:01:31]} 16. Bc2 {[%clk 0:02:03.9]} 16... b4 {[%clk 0:01:31]}
17. Qc1 {[%clk 0:01:43.6]} 17... b3 {[%clk 0:01:24.1]} 18. Bd1 {[%clk
0:01:40.7]} 18... c3+ {[%clk 0:01:23.9]} 19. Ke1 {[%clk 0:01:40]} 19... c2
{[%clk 0:01:21.6]} 20. Be2 {[%clk 0:01:39.7]} 20... Qb6 {[%clk 0:01:12.3]} 21.
Nd2 {[%clk 0:01:33.6]} 21... Bxe2 {[%clk 0:01:10.2]} 22. Kxe2 {[%clk 0:01:34.5]}
22... Qa6+ {[%clk 0:01:10.4]} 23. Kf3 {[%clk 0:01:30.7]} 23... Qb7 {[%clk
0:01:07.2]} 24. e4 {[%clk 0:01:25.7]} 24... Nc6 {[%clk 0:01:07.1]} 25. exd5
{[%clk 0:01:14.8]} 25... Nxd4+ {[%clk 0:01:07.1]} 26. Ke3 {[%clk 0:01:13.9]}
26... exd5 {[%clk 0:00:58.5]} 27. Kxd4 {[%clk 0:01:10]} 27... Qb6+ {[%clk
0:00:45.6]} 28. Kd3 {[%clk 0:00:54]} 28... Qb5+ {[%clk 0:00:45.6]} 29. Ke3
{[%clk 0:00:41.6]} 29... d4+ {[%clk 0:00:38.9]} 30. Kf4 {[%clk 0:00:14.2]} 30...
Qg5+ {[%clk 0:00:33.8]} 31. Kf3 {[%clk 0:00:14.5]} 31... Qh5+ {[%clk 0:00:33.9]}
32. Kf4 {[%clk 0:00:05.9]} 32... g5+ {[%clk 0:00:32.5]} 33. Ke4 {[%clk
0:00:02.2]} 33... Rfe8+ {[%clk 0:00:27.4]} 34. Kd3 {[%clk 0:00:01.8]} 34... Qe2+
{[%clk 0:00:26.1]} 35. Kxd4 {[%clk 0:00:01.9]} 35... Red8+ {[%clk 0:00:23.6]}
36. Kc3 {[%clk 0:00:02]} 36... Qd3+ {[%clk 0:00:22.4]} 37. Kb4 {[%clk
0:00:02.2]} 37... a5+ {[%clk 0:00:22.3]} 38. Ka4 {[%clk 0:00:02]} 38... Rd4+
{[%clk 0:00:22.3]} 0-1